bitfinex-derivatives/quotes_BTCF0:USTF0_20240829
["timestamp","ask_amount","ask_price","bid_price","bid_amount"]
[1724955192427,0.0039,60080.0,60070.0,0.3608]
[1724955192616,0.3608,60088.0,60078.0,0.3608]
[1724955192924,0.083184,60087.0,60078.0,0.3608]
[1724955193123,1.72,60086.0,60078.0,0.3608]
[1724955193326,0.3608,60088.0,60078.0,0.3608]
[1724955193526,0.083189,60083.0,60078.0,0.3608]
[1724955193716,0.3608,60088.0,60078.0,0.3608]
[1724955193916,1.72,60087.0,60078.0,0.3608]
[1724955195131,1.72,60087.0,60086.0,0.3608]
[1724955195630,0.083197,60077.0,60076.0,0.00024977]
[1724955196413,0.582557,60077.0,60076.0,0.00024977]
[1724955196619,1.09936,60077.0,60060.0,0.3608]
[1724955196815,0.083215,60064.0,60060.0,0.3608]
[1724955197725,0.00024977,60068.0,60060.0,0.3608]
[1724955198119,0.083218,60062.0,60060.0,0.3608]
[1724955198422,0.00024977,60068.0,60060.0,0.3608]
[1724955198622,0.083214,60065.0,60060.0,0.3608]
[1724955198824,0.00024977,60068.0,60060.0,0.3608]
[1724955198825,0.083216,60064.0,60060.0,0.3608]
[1724955199019,0.083218,60062.0,60060.0,0.3608]
[1724955199218,0.00024977,60068.0,60056.0,0.00024977]
[1724955199417,0.249675,60057.0,60056.0,7.7e-07]
[1724955199816,1.349195,60057.0,60056.0,7.7e-07]
[1724955200519,1.26597,60057.0,60056.0,7.7e-07]
[1724955201128,0.66597,60057.0,60056.0,7.7e-07]
[1724955201720,2.38597,60057.0,60056.0,7.7e-07]
[1724955202121,2.98597,60057.0,60056.0,7.7e-07]
[1724955202421,2.38597,60057.0,60056.0,7.7e-07]
[1724955202627,2.98597,60057.0,60056.0,7.7e-07]
[1724955203129,2.38597,60057.0,60056.0,7.7e-07]
[1724955203625,1.803225,60057.0,60056.0,7.7e-07]
[1724955205828,1.72,60057.0,60056.0,0.44402677]
[1724955206031,0.36104977,60068.0,60056.0,0.78053977]
[1724955206226,0.00024977,60068.0,60064.0,0.3608]
[1724955206532,0.083214,60065.0,60061.0,0.16593374]
[1724955206824,0.083214,60065.0,60061.0,0.52673374]
[1724955207025,0.083214,60065.0,60062.0,0.16593174]
[1724955207231,1.72,60067.0,60062.0,0.08271474]
[1724955208131,0.083218,60062.0,60061.0,0.44351474]
[1724955208324,0.083218,60062.0,60061.0,0.3608]
[1724955208528,1.73470579,60067.0,60061.0,0.3608]
[1724955208731,0.083214,60065.0,60061.0,0.3608]
[1724955208928,1.73470579,60067.0,60062.0,0.083218]
[1724955209121,1.73470579,60067.0,60061.0,0.3608]
[1724955209122,1.72,60067.0,60061.0,0.3608]
[1724955209426,0.083213,60066.0,60061.0,0.3608]
[1724955209825,0.083213,60066.0,60061.0,0.444018]
[1724955212324,1.72,60067.0,60061.0,0.3608]
[1724955212633,1.72,60067.0,60066.0,0.3608]
[1724955213330,0.01493886,60068.0,60066.0,0.3608]
[1724955214530,0.00024977,60068.0,60066.0,0.3608]
[1724955216126,0.00024977,60068.0,60067.0,0.58215474]
[1724955216440,0.00024977,60068.0,60067.0,0.70943915]
[1724955216628,0.01492184,60072.0,60068.0,0.083209]
[1724955216830,0.083203,60073.0,60071.0,0.44336796]
[1724955217225,0.083203,60073.0,60071.0,0.3608]
[1724955217426,0.083203,60073.0,60072.0,0.20935898]
[1724955217625,0.083203,60073.0,60072.0,0.12679102]
[1724955217934,1.66024977,60079.0,60077.0,0.083197]
[1724955218639,0.00024977,60079.0,60078.0,0.443996]
[1724955218834,0.01467565,60089.0,60078.0,0.4875776]
[1724955219136,0.083172,60096.0,60084.0,0.3608]
[1724955219137,0.083186,60085.0,60084.0,0.3608]
[1724955221226,0.083191,60082.0,60078.0,0.443995]
[1724955222437,0.083181,60089.0,60078.0,0.443995]
[1724955222637,0.083192,60081.0,60078.0,0.443995]
[1724955222940,0.083192,60081.0,60078.0,0.3608]
[1724955223438,0.083193,60080.0,60078.0,0.3608]
[1724955223845,0.083191,60082.0,60078.0,0.443995]
[1724955224227,0.3608,60086.0,60078.0,0.86012]
[1724955224426,0.3608,60086.0,60081.0,0.083191]
[1724955224427,0.083187,60084.0,60081.0,0.083191]
[1724955224624,0.3608,60086.0,60079.0,0.112]
[1724955224831,1.67513974,60090.0,60087.0,0.083182]
[1724955225045,0.01513974,60090.0,60089.0,0.44398]
[1724955225234,0.00024977,60091.0,60090.0,0.083179]
[1724955225438,0.0039,60105.0,60090.0,0.49924]
[1724955225439,0.01893547,60105.0,60090.0,0.49924]
[1724955225636,0.083154,60108.0,60101.0,0.3608]
[1724955225637,0.083162,60102.0,60101.0,0.3608]
[1724955225935,0.083162,60102.0,60097.0,0.3608]
[1724955225936,0.083158,60105.0,60097.0,0.3608]
[1724955226134,0.3608,60113.0,60102.0,0.3608]
[1724955226335,0.37575492,60113.0,60102.0,0.443961]
[1724955226730,0.083154,60108.0,60102.0,0.443961]
[1724955226938,0.083156,60107.0,60102.0,0.443961]
[1724955227133,0.37575492,60113.0,60102.0,0.3608]
[1724955227134,0.083158,60105.0,60102.0,0.3608]
[1724955227639,0.083161,60103.0,60102.0,0.3608]
[1724955228040,0.083161,60103.0,60102.0,1.45996]
[1724955228539,1.66,60111.0,60102.0,1.45996]
[1724955228751,0.7216,60106.0,60086.0,0.3608]
[1724955228932,0.08319,60082.0,60079.0,0.3608]
[1724955229134,0.083193,60081.0,60079.0,0.3608]
[1724955229444,0.083193,60080.0,60079.0,0.3608]
[1724955229632,0.083187,60084.0,60076.0,0.17188809]
[1724955230038,0.083194,60080.0,60076.0,0.17188809]
[1724955230243,0.00024955,60086.0,60078.0,0.04948809]
[1724955230244,0.083194,60079.0,60078.0,0.04948809]
[1724955230439,0.083194,60079.0,60078.0,0.3608]
[1724955230839,0.08343455,60086.0,60078.0,0.3608]
[1724955231029,0.08343455,60086.0,60076.0,0.1224]
[1724955231030,0.083197,60077.0,60076.0,0.1224]
[1724955231235,0.083197,60077.0,60075.0,0.15728809]
[1724955231444,0.083197,60077.0,60076.0,0.04952847]
[1724955231633,0.08343555,60086.0,60076.0,0.04952847]
[1724955231837,0.083196,60078.0,60076.0,0.04952818]
[1724955232049,0.00024955,60086.0,60076.0,0.04952818]
[1724955232050,0.083197,60077.0,60076.0,0.04952818]
[1724955232231,0.083195,60079.0,60075.0,0.15732818]
[1724955232544,0.08343455,60086.0,60077.0,0.04952818]
[1724955232545,0.083196,60078.0,60077.0,0.04952818]
[1724955232740,0.00024955,60086.0,60077.0,0.04955495]
[1724955232946,0.1664,60075.0,60074.0,0.00024955]
[1724955233440,1.8264,60075.0,60074.0,0.00024955]
[1724955233639,1.7432,60075.0,60074.0,0.00024955]
[1724955234033,1.8264,60075.0,60074.0,0.00024955]
[1724955234237,2.2704,60075.0,60074.0,0.00024955]
[1724955234536,0.083219,60061.0,60060.0,0.04955495]
[1724955234745,0.083219,60061.0,60054.0,0.3608]
[1724955234746,0.083219,60061.0,60054.0,0.444029]
[1724955234942,0.3608,60069.0,60054.0,0.3608]
[1724955235142,0.3608,60069.0,60063.0,0.04962029]
[1724955235342,0.083205,60071.0,60063.0,0.04962029]
[1724955235343,0.083205,60071.0,60063.0,0.41042029]
[1724955235639,0.083214,60065.0,60064.0,0.04964213]
[1724955235844,0.083214,60065.0,60061.0,0.00024955]
[1724955236043,0.083218,60062.0,60061.0,0.00024955]
[1724955236239,0.083218,60062.0,60061.0,0.08295326]
[1724955236646,0.083216,60064.0,60061.0,0.08295326]
[1724955236840,0.083212,60066.0,60061.0,0.08295326]
[1724955237146,0.083215,60064.0,60061.0,0.08295326]
[1724955237541,0.083218,60062.0,60061.0,0.00024955]
[1724955237846,0.083213,60066.0,60061.0,0.00024955]
[1724955238050,0.083214,60065.0,60061.0,0.08295326]
[1724955238239,0.083215,60064.0,60061.0,0.08295326]
[1724955238453,0.083218,60062.0,60061.0,0.08295326]
[1724955238642,0.083218,60062.0,60061.0,0.00024955]
[1724955239443,0.083218,60062.0,60061.0,0.08295326]
[1724955239644,0.166436,60062.0,60061.0,0.00024955]
[1724955239844,0.249654,60062.0,60061.0,0.00024955]
[1724955240044,0.166436,60062.0,60061.0,0.00024955]
[1724955240349,0.083218,60062.0,60061.0,0.00024955]
[1724955241447,0.3608,60064.0,60061.0,0.00024955]
[1724955241644,0.3608,60064.0,60061.0,0.49972955]
[1724955242455,0.3608,60064.0,60063.0,0.083216]
[1724955242640,0.3608,60064.0,60063.0,0.582696]
[1724955242840,0.3608,60064.0,60063.0,1.182696]
[1724955243040,0.3608,60064.0,60063.0,0.582696]
[1724955243255,0.3608,60064.0,60063.0,1.182696]
[1724955243741,0.01518825,60068.0,60063.0,1.182696]
[1724955243942,0.3608,60069.0,60067.0,0.06619613]
[1724955244253,0.083196,60078.0,60072.0,0.083204]
[1724955244544,0.1172,60080.0,60072.0,1.044004]
[1724955244545,0.01464811,60080.0,60072.0,1.044004]
[1724955244744,0.01464811,60080.0,60072.0,1.4602]
[1724955244942,0.083189,60083.0,60078.0,0.3608]
[1724955245138,0.3608,60084.0,60081.0,0.04963454]
[1724955245338,0.3608,60084.0,60078.0,0.3608]
[1724955245339,0.37558472,60084.0,60082.0,0.04963454]
[1724955245641,0.3608,60084.0,60080.0,0.04963454]
[1724955246046,0.3608,60084.0,60082.0,0.04963454]
[1724955246248,0.3608,60084.0,60082.0,0.13282454]
[1724955246552,0.00024955,60089.0,60083.0,0.49932]
[1724955246752,0.083182,60088.0,60082.0,0.00108]
[1724955246948,0.083184,60087.0,60081.0,0.13282427]
[1724955247145,0.00024955,60089.0,60082.0,0.083189]
[1724955247454,0.00024955,60089.0,60087.0,0.083182]
[1724955247751,0.00024955,60089.0,60082.0,0.13282227]
[1724955247940,0.00024955,60089.0,60083.0,0.04963327]
[1724955248141,0.00024955,60089.0,60083.0,0.13282127]
[1724955248357,0.083187,60084.0,60081.0,0.04963327]
[1724955248572,0.083187,60084.0,60079.0,0.17173327]
[1724955249043,0.00024955,60089.0,60080.0,0.54895327]
[1724955249247,0.00024955,60089.0,60084.0,0.083186]
[1724955249460,0.00024955,60089.0,60084.0,0.3608]
[1724955249646,0.083183,60087.0,60084.0,0.3608]
[1724955249844,0.00024955,60089.0,60084.0,0.3608]
[1724955250045,0.00024955,60089.0,60084.0,0.083186]
[1724955250239,0.00024955,60089.0,60085.0,0.083186]
[1724955250941,0.08343055,60089.0,60082.0,0.13282227]
[1724955251345,0.08343055,60089.0,60082.0,0.083189]
[1724955251540,0.083182,60088.0,60079.0,0.205293]
[1724955252059,0.083196,60078.0,60077.0,0.00024955]
[1724955252753,0.083196,60078.0,60077.0,0.36104955]
[1724955254747,0.3608,60083.0,60077.0,0.36104955]
[1724955254946,0.08319,60082.0,60077.0,0.00024955]
[1724955255152,0.083196,60078.0,60077.0,0.36104955]
[1724955255345,0.443996,60078.0,60077.0,0.00024955]
[1724955255754,0.527192,60078.0,60077.0,0.00024955]
[1724955255952,0.527192,60078.0,60061.0,0.06617986]
[1724955255953,0.3608,60078.0,60064.0,0.41043327]
[1724955256149,0.083214,60065.0,60064.0,0.3608]
[1724955256349,0.083213,60066.0,60059.0,0.04963327]
[1724955256543,0.083213,60066.0,60060.0,0.13285327]
[1724955256849,0.083213,60066.0,60057.0,0.47292]
[1724955256850,0.083207,60070.0,60059.0,0.04963327]
[1724955257062,0.00024955,60069.0,60060.0,0.04963327]
[1724955257244,0.00024955,60069.0,60068.0,0.444009]
[1724955257442,0.00024955,60069.0,60068.0,1.044009]
[1724955257645,0.00024955,60069.0,60068.0,0.63228227]
[1724955257949,0.00024955,60069.0,60068.0,0.99308227]
[1724955258448,0.00024955,60069.0,60068.0,0.943449]
[1724955258651,1.46048955,60069.0,60065.0,0.04973211]
[1724955258856,0.166446,60058.0,60057.0,0.00024955]
[1724955259044,2.630469,60058.0,60057.0,5.5e-07]
[1724955259351,0.083226,60056.0,60036.0,0.0039]
[1724955259551,0.3608,60037.0,60027.0,0.083266]
[1724955259954,0.3608,60037.0,60026.0,0.083267]
[1724955259955,0.083256,60035.0,60026.0,0.083267]
[1724955260153,0.083256,60035.0,60027.0,0.3608]
[1724955260357,0.3608,60043.0,60027.0,0.3608]
[1724955260358,0.3610498,60037.0,60027.0,0.3608]
[1724955260852,0.083254,60036.0,60027.0,0.3608]
[1724955261461,0.0002498,60037.0,60035.0,0.3608]
[1724955261645,0.3608,60045.0,60036.0,0.49972]
[1724955261847,0.3608,60045.0,60035.0,0.72188]
[1724955262063,0.083265,60028.0,60027.0,0.00108]
[1724955262358,0.083268,60026.0,60025.0,0.0002498]
[1724955262651,0.083268,60026.0,60025.0,8e-07]
[1724955262652,0.444068,60026.0,60025.0,8e-07]
[1724955262852,1.627136,60026.0,60025.0,8e-07]
[1724955263358,3.287136,60026.0,60025.0,8e-07]
[1724955263553,3.203868,60026.0,60025.0,8e-07]
[1724955263854,3.287136,60026.0,60025.0,8e-07]
[1724955264042,3.203868,60026.0,60025.0,8e-07]
[1724955264559,3.287136,60026.0,60025.0,8e-07]
[1724955265542,3.370404,60026.0,60025.0,8e-07]
[1724955265746,3.287136,60026.0,60025.0,8e-07]
[1724955266061,3.370404,60026.0,60025.0,8e-07]
[1724955266260,3.287136,60026.0,60025.0,8e-07]
[1724955266454,2.687136,60026.0,60025.0,8e-07]
[1724955266669,2.687136,60026.0,60006.0,0.0039]
[1724955266670,0.083294,60007.0,60006.0,0.0039]
[1724955266960,0.083301,60002.0,60000.0,0.2]
[1724955267145,0.444101,60002.0,60000.0,0.2]
[1724955268555,0.3608,60002.0,60000.0,0.2]
[1724955268756,0.3610498,60007.0,60000.0,0.783304]
[1724955268959,0.3610498,60007.0,60001.0,0.444102]
[1724955269254,0.3610498,60007.0,60002.0,0.083301]
[1724955269756,0.0002498,60007.0,60001.0,0.3608]
[1724955270059,0.0039,60022.0,60006.0,0.3608]
[1724955270254,0.083287,60013.0,60006.0,0.3608]
[1724955270456,0.3757627,60018.0,60004.0,0.3608]
[1724955270655,0.3608,60018.0,60009.0,0.3608]
[1724955270856,0.083281,60017.0,60009.0,0.3608]
[1724955271053,0.083281,60017.0,60009.0,0.444091]
[1724955271451,0.083284,60014.0,60009.0,0.3608]
[1724955271653,0.3608,60018.0,60007.0,0.0002498]
[1724955271862,0.083286,60013.0,60007.0,0.0002498]
[1724955272058,0.17473923,60018.0,60007.0,0.0002498]
[1724955272459,0.083285,60014.0,60007.0,0.0002498]
[1724955272963,0.083285,60014.0,60009.0,0.3608]
[1724955273352,0.17473923,60018.0,60009.0,0.3608]
[1724955273671,0.17473923,60018.0,60014.0,0.083284]
[1724955273853,0.0002498,60019.0,60009.0,0.3608]
[1724955274059,0.0002498,60019.0,60007.0,0.0002498]
[1724955274254,0.083285,60014.0,60007.0,0.0002498]
[1724955274655,0.083293,60008.0,60007.0,0.0002498]
[1724955274957,0.166586,60008.0,60007.0,0.0002498]
[1724955275357,0.083293,60008.0,60007.0,0.0002498]
[1724955275553,0.3608,60009.0,60007.0,0.0002498]
[1724955275954,0.0002498,60019.0,60008.0,0.3608]
[1724955276159,1.66,60018.0,60013.0,0.3608]
[1724955276763,0.083281,60017.0,60013.0,0.3608]
[1724955277272,0.0002498,60019.0,60017.0,0.083279]
[1724955277454,0.0002498,60019.0,60018.0,0.443279]
[1724955277965,2.107957,60034.0,60018.0,0.36]
[1724955278168,0.37536914,60034.0,60025.0,0.3608]
[1724955278370,0.3608,60041.0,60031.0,0.3608]
[1724955278663,1.66,60040.0,60031.0,0.3608]
[1724955278867,1.66,60040.0,60033.0,0.083258]
[1724955279073,1.66,60040.0,60031.0,0.3608]
[1724955279262,0.083254,60036.0,60031.0,0.3608]
[1724955280569,0.083254,60036.0,60030.0,0.0002498]
[1724955281368,1.66,60040.0,60030.0,0.0002498]
[1724955281576,0.083261,60031.0,60030.0,0.0002498]
[1724955282666,0.083261,60031.0,60019.0,0.3608]
[1724955282667,0.083272,60023.0,60019.0,0.3608]
[1724955282863,0.3608,60029.0,60014.0,0.3608]
[1724955283072,0.083277,60020.0,60014.0,0.3608]
[1724955283873,0.0835218,60023.0,60012.0,0.7208]
[1724955284075,0.0835218,60023.0,60015.0,0.083283]
[1724955284773,1.66,60022.0,60012.0,0.72188]
[1724955285075,0.0002498,60023.0,60020.0,0.083276]
[1724955285268,0.0002498,60023.0,60022.0,0.083273]
[1724955285472,0.3608,60035.0,60021.0,0.3608]
[1724955285770,0.3608,60035.0,60033.0,0.083257]
[1724955285961,0.3608,60035.0,60030.0,0.36]
[1724955286871,0.0002498,60039.0,60037.0,0.083252]
[1724955287080,0.0002498,60039.0,60034.0,0.3608]
[1724955287265,0.0834998,60039.0,60034.0,0.3608]
[1724955287465,0.083255,60035.0,60034.0,0.3608]
[1724955287665,0.083255,60035.0,60029.0,0.444062]
[1724955288379,0.444055,60035.0,60029.0,0.083262]
[1724955289377,0.083259,60032.0,60027.0,0.3608]
[1724955290669,0.083264,60029.0,60026.0,0.3610498]
[1724955291071,0.08326,60032.0,60026.0,0.3610498]
[1724955292078,0.3608,60035.0,60028.0,0.083265]
[1724955292578,0.444055,60035.0,60028.0,0.083265]
[1724955292971,0.083259,60033.0,60028.0,0.083265]
[1724955293271,0.083259,60033.0,60029.0,0.20976605]
[1724955293477,0.083259,60033.0,60029.0,0.08286376]
[1724955293876,0.3608,60035.0,60029.0,0.08286376]
[1724955294064,0.166526,60029.0,60028.0,0.08286376]
[1724955294264,0.444063,60029.0,60026.0,0.0002498]
[1724955294875,1.66,60028.0,60026.0,0.0002498]
[1724955295179,0.083266,60027.0,60026.0,0.0002498]
[1724955295979,0.166532,60027.0,60026.0,0.0002498]
[1724955296180,0.083266,60027.0,60026.0,0.0002498]
[1724955296678,0.166532,60027.0,60026.0,0.0002498]
[1724955296981,0.083266,60027.0,60026.0,0.0002498]
[1724955297182,0.166532,60027.0,60026.0,0.0002498]
[1724955297474,0.083266,60027.0,60026.0,0.0002498]
[1724955297872,0.083266,60027.0,60026.0,0.08311356]
[1724955298067,0.083266,60027.0,60026.0,0.0002498]
[1724955298286,0.083266,60027.0,60026.0,0.08311356]
[1724955298474,0.083266,60027.0,60026.0,0.1271578]
[1724955298675,0.083266,60027.0,60026.0,0.21013395]
[1724955299585,0.083266,60027.0,60026.0,0.1271578]
[1724955300578,0.083266,60027.0,60026.0,0.12715951]
[1724955303283,0.166532,60027.0,60026.0,0.12715951]
[1724955304077,1.710358,60027.0,60026.0,0.12665926]
[1724955304280,1.710358,60027.0,60024.0,0.08304907]
[1724955304281,0.249807,60025.0,60024.0,0.08304907]
[1724955304583,0.24981,60024.0,60023.0,0.08304907]
[1724955304773,0.74961,60024.0,60023.0,0.08304907]
[1724955304977,1.34961,60024.0,60023.0,0.08304907]
[1724955305286,0.08327,60024.0,60023.0,0.16632107]
[1724955305487,0.083277,60020.0,60017.0,0.0002498]
[1724955305790,0.3608,60027.0,60018.0,0.15447469]
[1724955305977,0.3608,60027.0,60021.0,0.099735]
[1724955305978,0.083273,60022.0,60021.0,0.099735]
[1724955306480,0.083279,60018.0,60017.0,0.0002498]
[1724955306778,0.04161307,60018.0,60017.0,0.0002498]
[1724955307180,0.12489207,60018.0,60017.0,0.0002498]
[1724955307483,0.48489207,60018.0,60017.0,0.0002498]
[1724955308571,0.48489207,60018.0,60002.0,0.11565589]
[1724955308572,0.166572,60013.0,60012.0,0.01453253]
[1724955308783,0.166572,60013.0,60008.0,0.01453253]
[1724955308784,0.083288,60011.0,60008.0,0.01453253]
[1724955308984,0.443291,60009.0,59994.0,0.11565589]
[1724955309176,0.3608,60001.0,59992.0,0.47645589]
[1724955309380,0.47739917,60001.0,60000.0,0.35449412]
[1724955309579,1.93739917,60001.0,60000.0,0.017332]
[1724955309989,0.75409717,60001.0,60000.0,0.017332]
[1724955311077,0.39409717,60001.0,60000.0,0.017332]
[1724955311889,0.3610498,60007.0,60006.0,0.083295]
[1724955312284,0.0002498,60007.0,60006.0,0.083295]
[1724955312477,0.3608,60014.0,60013.0,0.083286]
[1724955312776,0.36,60014.0,60008.0,0.08301846]
[1724955312980,0.36,60014.0,60000.0,0.017332]
[1724955312981,0.7208,60009.0,60002.0,4.6e-07]
[1724955313178,0.526604,60001.0,60000.0,0.017332]
[1724955313381,2.464102,60001.0,60000.0,0.017332]
[1724955314494,2.547404,60001.0,60000.0,0.0170822]
[1724955314676,2.547404,60001.0,59994.0,0.0002498]
[1724955314677,0.083311,59995.0,59994.0,0.0002498]
[1724955314884,0.804111,59995.0,59994.0,0.0002498]
[1724955315089,1.987462,59995.0,59994.0,0.0002498]
[1724955315887,1.904151,59995.0,59994.0,0.0002498]
[1724955316110,0.804111,59995.0,59994.0,0.0002498]
[1724955317092,2.104942,60001.0,60000.0,0.083304]
[1724955317093,0.36164,60001.0,60000.0,0.083304]
[1724955317393,0.36164,60001.0,59994.0,0.0002498]
[1724955317394,0.3608,60001.0,59996.0,0.083309]
[1724955317595,0.3608,60001.0,59994.0,0.0002498]
[1724955317889,0.3608,60001.0,59999.0,0.083304]
[1724955318090,0.3608,60001.0,59995.0,0.19071]
[1724955318296,0.3608,60001.0,59996.0,0.083308]
[1724955318782,0.3608,60001.0,59999.0,0.06634446]
[1724955319392,2.0210898,60007.0,59999.0,0.06634446]
[1724955319393,0.0010898,60007.0,59999.0,0.6]
[1724955319697,0.0002498,60007.0,60002.0,0.06634889]
[1724955319997,0.0002498,60007.0,60006.0,0.083295]
[1724955320289,0.0002498,60007.0,60005.0,0.06634889]
[1724955320487,0.0002498,60007.0,60004.0,0.06634889]
[1724955320488,0.083297,60005.0,60004.0,0.06634889]
[1724955320689,0.36,60005.0,60000.0,0.06634889]
[1724955320890,0.3608,60001.0,60000.0,0.06634889]
[1724955321592,0.3608,60001.0,59996.0,0.083308]
[1724955321889,0.3608,60001.0,60000.0,0.06636527]
[1724955322097,0.3608,60001.0,59995.0,0.1074]
[1724955322298,0.444102,60001.0,60000.0,0.06636816]
[1724955322598,0.444102,60001.0,59994.0,0.0002498]
[1724955322599,0.083304,60000.0,59999.0,0.06637672]
[1724955322788,0.443304,60000.0,59999.0,0.06637672]
[1724955322983,0.083309,59997.0,59994.0,0.0002498]
[1724955323187,0.444111,59995.0,59994.0,0.0002498]
[1724955324198,0.444111,59995.0,59973.0,0.11565589]
[1724955324199,0.166674,59976.0,59974.0,0.0039]
[1724955324497,2.29213772,59975.0,59960.0,0.18205537]
[1724955324702,0.083359,59960.0,59954.0,0.00108]
[1724955324894,0.083373,59950.0,59949.0,0.18205537]
[1724955325082,0.444173,59950.0,59949.0,0.18205537]
[1724955325282,0.08338,59945.0,59944.0,0.00025002]
[1724955325482,1.713293,59950.0,59944.0,0.00025002]
[1724955325483,0.3608,59950.0,59944.0,0.00025002]
[1724955325685,0.36,59947.0,59944.0,0.00025002]
[1724955325892,0.3608,59945.0,59944.0,0.00025002]
[1724955326291,2.02,59947.0,59944.0,0.00025002]
[1724955326292,1.66084,59947.0,59944.0,0.00025002]
[1724955326487,2.02,59947.0,59944.0,0.00025002]
[1724955326695,0.3608,59945.0,59944.0,0.00025002]
[1724955326899,0.083386,59941.0,59934.0,0.11620375]
[1724955327088,0.3608,59945.0,59928.0,0.13217816]
[1724955327089,0.3608,59935.0,59928.0,0.11620375]
[1724955327392,0.3608,59929.0,59926.0,0.11620375]
[1724955327592,0.2774264,59929.0,59926.0,0.11620375]
[1724955327792,1.747277,59947.0,59929.0,0.083402]
[1724955327793,0.3608,59942.0,59929.0,0.083402]
[1724955327999,0.7208,59937.0,59930.0,0.00025024]
[1724955328197,0.7208,59931.0,59930.0,0.00025024]
[1724955328796,0.36,59937.0,59930.0,0.00025024]
[1724955328997,0.36,59937.0,59935.0,0.0992525]
[1724955329201,0.36,59937.0,59930.0,0.00025024]
[1724955329202,0.36,59937.0,59936.0,0.0992525]
[1724955329387,0.36,59937.0,59935.0,0.0992525]
[1724955329900,0.50052,59936.0,59933.0,0.09919524]
[1724955330109,0.083425,59913.0,59912.0,0.0039]
[1724955330398,0.083425,59913.0,59900.0,0.1]
[1724955330399,0.083436,59905.0,59904.0,0.03090375]
[1724955330609,0.804236,59905.0,59904.0,0.03090375]
[1724955330798,0.804236,59905.0,59900.0,0.1]
[1724955330799,0.083441,59901.0,59900.0,0.1]
[1724955331197,0.53708,59902.0,59900.0,0.1]
[1724955331395,0.3608,59904.0,59900.0,0.1]
[1724955331594,0.00025024,59906.0,59900.0,0.183442]
[1724955331804,0.00025024,59906.0,59905.0,0.0989765]
[1724955332022,1.52105024,59906.0,59905.0,0.09897525]
[1724955332195,1.52105024,59906.0,59900.0,0.0981]
[1724955332196,0.08344,59902.0,59900.0,0.0981]
[1724955332393,0.3608,59901.0,59900.0,0.0981]
[1724955332598,0.86164,59901.0,59900.0,0.006375]
[1724955332798,0.50084,59900.0,59895.0,0.00016814]
[1724955333007,0.50084,59900.0,59869.0,0.14771243]
[1724955333008,0.21910184,59867.0,59864.0,0.27958189]
[1724955333208,0.7216,59865.0,59858.0,0.14771243]
[1724955333508,0.7216,59865.0,59841.0,0.3608]
[1724955333509,0.7808,59859.0,59846.0,0.13186946]
[1724955333804,0.3608,59853.0,59847.0,0.10426939]
[1724955333995,0.3608,59853.0,59844.0,0.3608]
[1724955333996,0.31085053,59848.0,59845.0,0.13186946]
[1724955334198,0.083517,59847.0,59846.0,0.10427238]
[1724955334406,0.3608,59851.0,59841.0,0.10427504]
[1724955334407,0.7808,59850.0,59841.0,0.10427504]
[1724955334700,0.00025045,59856.0,59849.0,0.3608]
[1724955334902,0.083507,59854.0,59850.0,0.10427504]
[1724955335100,0.083507,59854.0,59840.0,0.65946946]
[1724955335101,0.00025045,59856.0,59845.0,0.3608]
[1724955335303,0.3608,59846.0,59832.0,0.13270946]
[1724955335506,0.42,59837.0,59833.0,0.10428027]
[1724955335705,0.3608,59840.0,59839.0,0.34472]
[1724955335891,0.7808,59855.0,59839.0,0.80980027]
[1724955336207,1.66116,59859.0,59855.0,0.34472]
[1724955336503,0.78105068,59863.0,59858.0,0.34472]
[1724955336692,0.78105068,59863.0,59862.0,0.34472]
[1724955336693,0.00025068,59863.0,59862.0,0.34472]
[1724955337003,1e-08,59863.0,59862.0,0.70552]
[1724955337205,1e-08,59863.0,59853.0,0.2309]
[1724955337399,1e-08,59863.0,59858.0,0.34472]
[1724955337609,0.42000001,59863.0,59859.0,0.34472]
[1724955337906,0.42000001,59863.0,59855.0,2e-08]
[1724955337907,0.083504,59857.0,59855.0,2e-08]
[1724955338107,0.083529,59839.0,59831.0,0.1133]
[1724955338302,0.083529,59839.0,59820.0,0.14771243]
[1724955338303,0.3608,59833.0,59822.0,0.13186946]
[1724955338621,0.08356,59816.0,59815.0,0.00084]
[1724955338808,0.083562,59815.0,59803.0,0.13186946]
[1724955339101,0.42,59806.0,59796.0,0.49266946]
[1724955339306,0.42,59806.0,59795.0,0.14771243]
[1724955339307,0.30239406,59802.0,59794.0,0.13186946]
[1724955339502,0.30239406,59802.0,59797.0,0.34472]
[1724955339712,0.3608,59799.0,59794.0,0.34472]
[1724955339910,0.3608,59799.0,59795.0,0.43241264]
[1724955340095,0.3608,59799.0,59788.0,0.45707543]
[1724955340096,0.42,59798.0,59796.0,0.08769264]
[1724955340298,0.3608,59799.0,59797.0,0.43241264]
[1724955340509,0.42,59798.0,59795.0,0.34472]
[1724955340703,0.42,59798.0,59796.0,0.08496251]
[1724955340902,0.42,59798.0,59797.0,0.08496251]
[1724955341099,0.3608,59799.0,59797.0,0.08496251]
[1724955341308,0.3608,59799.0,59798.0,0.08496251]
[1724955341514,0.3608,59799.0,59798.0,0.42968251]
[1724955341811,1e-08,59804.0,59798.0,0.54203794]
[1724955342007,1e-08,59804.0,59803.0,0.789098]
[1724955342195,1e-08,59804.0,59803.0,0.88675794]
[1724955342506,0.36080001,59804.0,59803.0,0.08496251]
[1724955342810,0.36080001,59804.0,59793.0,0.00025068]
[1724955342999,0.36080001,59804.0,59800.0,0.34472]
[1724955343396,0.36080001,59804.0,59803.0,0.34472]
[1724955343598,1e-08,59804.0,59803.0,0.34472]
[1724955343802,0.3608,59833.0,59803.0,0.09627543]
[1724955343999,0.3608,59833.0,59824.0,0.083549]
[1724955344196,0.3608,59833.0,59816.0,0.3608]
[1724955344197,0.7808,59825.0,59816.0,0.3608]
[1724955344511,0.42,59833.0,59816.0,0.45707543]
[1724955344700,0.42,59833.0,59821.0,0.3608]
[1724955345006,0.00025068,59830.0,59827.0,0.083544]
[1724955345207,0.00025068,59830.0,59826.0,0.3608]